bitfinex/quotes_ETHUSD_20251117
["timestamp","ask_amount","ask_price","bid_price","bid_amount"]
[1763391064079,0.005,3203.9,3202.1,0.4553545]
[1763391064373,0.005,3203.9,3203.5,0.1945]
[1763391064737,0.005,3203.9,3203.5,0.6867]
[1763391065274,0.1042,3203.9,3203.0,0.1945]
[1763391065432,0.0992,3203.3,3201.9,0.4922]
[1763391065629,0.4577,3203.8,3201.8,0.107]
[1763391065630,0.0992,3203.0,3201.8,0.107]
[1763391065847,0.0992,3203.0,3201.9,0.4922]
[1763391066633,0.0992,3203.0,3201.8,0.107]
[1763391066832,0.0992,3202.8,3201.5,0.4922]
[1763391067226,0.4577,3204.1,3201.5,0.4922]
[1763391067420,0.405504,3204.0,3201.6,0.03123438]
[1763391067619,0.405504,3204.0,3201.5,0.4922]
[1763391067824,0.405504,3204.0,3201.1,0.005]
[1763391067825,0.0992,3202.5,3201.1,0.005]
[1763391068060,0.0992,3201.8,3201.1,0.005]
[1763391068262,0.0992,3201.5,3201.1,0.005]
[1763391068437,0.0992,3202.2,3201.1,0.005]
[1763391068754,0.0992,3201.7,3201.1,0.005]
[1763391069169,0.1807,3201.6,3201.1,0.005]
[1763391069323,0.0992,3202.0,3201.1,0.005]
[1763391069523,0.0992,3202.2,3201.1,0.005]
[1763391069846,0.0992,3202.4,3201.2,0.4922]
[1763391070051,0.0992,3202.2,3201.2,0.4922]
[1763391071017,0.0992,3202.0,3201.1,0.005]
[1763391071167,0.0992,3201.7,3201.1,0.005]
[1763391071367,0.405504,3202.5,3201.1,0.005]
[1763391071368,0.0992,3201.5,3201.1,0.005]
[1763391071795,0.0992,3201.7,3201.1,0.005]
[1763391072009,0.0992,3201.9,3201.1,0.005]
[1763391072307,0.0992,3201.5,3201.1,0.005]
[1763391072466,0.0992,3202.2,3201.1,0.4972]
[1763391072673,0.0992,3201.8,3201.1,0.4972]
[1763391073007,0.0992,3201.8,3201.1,0.005]
[1763391074169,0.1807,3202.8,3201.1,0.005]
[1763391074401,0.405504,3202.6,3201.1,0.005]
[1763391074609,0.0992,3202.6,3201.2,0.4922]
[1763391074922,0.0992,3202.9,3201.2,0.4922]
[1763391075070,0.0992,3203.1,3201.2,0.4922]
[1763391075273,0.0992,3203.1,3201.1,0.005]
[1763391075274,0.0992,3202.2,3201.1,0.005]
[1763391075826,0.0992,3201.7,3201.1,0.005]
[1763391076792,0.0992,3202.0,3201.1,0.005]
[1763391076971,0.6825,3202.7,3201.1,0.4902]
[1763391077167,0.0992,3202.7,3201.1,0.4902]
[1763391077427,0.0992,3202.3,3201.1,0.4902]
[1763391077734,0.0992,3202.5,3201.1,0.4902]
[1763391078146,0.0992,3201.8,3201.1,0.005]
[1763391078568,0.0992,3201.2,3201.1,0.005]
[1763391078714,0.504704,3201.2,3201.1,0.005]
[1763391078905,0.504704,3201.2,3200.8,0.001]
[1763391078906,0.504704,3200.6,3200.5,0.001]
[1763391079208,0.0992,3199.2,3197.7,0.4852]
[1763391079410,0.592404,3200.2,3197.1,0.005]
[1763391079411,0.0992,3199.7,3198.3,0.4852]
[1763391080042,0.0992,3199.7,3197.7,0.4852]
[1763391080043,0.0992,3199.5,3197.7,0.4852]
[1763391080335,0.0992,3200.0,3198.8,0.4852]
[1763391080554,0.0992,3199.4,3198.0,0.4852]
[1763391080702,0.1869,3200.2,3198.6,0.4852]
[1763391080703,0.0992,3199.7,3198.6,0.4852]
[1763391081448,0.0992,3199.4,3198.1,0.4902]
[1763391081595,0.0992,3199.6,3198.4,0.4852]
[1763391081798,0.4956,3199.8,3198.1,0.005]
[1763391081799,0.0984,3199.5,3198.1,0.005]
[1763391082035,0.405504,3199.7,3198.1,0.005]
[1763391082036,0.0984,3199.2,3198.1,0.005]
[1763391082223,0.0984,3199.2,3198.1,0.4902]
[1763391082395,0.0984,3199.2,3198.1,0.005]
[1763391082599,0.999504,3199.2,3198.1,0.005]
[1763391083043,0.0984,3199.3,3198.3,0.4852]
[1763391083242,0.0984,3199.5,3198.3,0.4852]
[1763391083441,0.0984,3199.5,3198.1,0.005]
[1763391083442,0.0984,3199.5,3198.7,0.4852]
[1763391083970,0.0984,3199.5,3198.5,0.4852]
[1763391084319,0.1869,3200.2,3198.5,0.4852]
[1763391084518,0.0984,3199.7,3198.5,0.4852]
[1763391084726,0.0984,3200.0,3198.5,0.4852]
[1763391084937,0.0984,3200.0,3198.1,0.005]
[1763391085144,0.0984,3200.2,3199.2,0.4852]
[1763391085364,0.4956,3201.0,3199.2,0.4852]
[1763391085712,0.0984,3200.7,3199.2,0.4852]
[1763391086054,0.1869,3201.7,3199.3,0.03125683]
[1763391086263,0.0984,3200.6,3199.2,0.4852]
[1763391086831,0.0984,3200.1,3199.2,0.4852]
[1763391087224,0.0984,3200.5,3199.3,0.03125683]
[1763391087435,0.0984,3200.1,3199.1,0.4843]
[1763391087678,0.0984,3199.7,3199.1,0.005]
[1763391087947,0.0984,3199.3,3199.1,0.005]
[1763391088954,0.0984,3199.6,3199.1,0.005]
[1763391089169,0.0984,3199.8,3199.1,0.005]
[1763391089316,0.90699264,3200.5,3199.2,0.4793]
[1763391089520,0.4632,3200.7,3199.2,0.4793]
[1763391089521,0.0984,3200.3,3199.2,0.4793]
[1763391089828,0.0984,3200.1,3199.1,0.005]
[1763391090228,0.0984,3200.5,3199.2,0.4793]
[1763391090429,0.0984,3200.7,3199.3,0.03125683]
[1763391090638,0.0984,3200.8,3199.2,0.4793]
[1763391090832,0.0984,3200.5,3199.2,0.4793]
[1763391091527,0.0984,3200.0,3199.1,0.005]
[1763391091728,0.0984,3200.5,3199.2,0.4793]
[1763391091927,0.4632,3201.4,3199.2,0.4793]
[1763391091928,0.0984,3200.7,3199.2,0.4793]
[1763391092240,0.4632,3201.4,3199.2,0.4793]
[1763391092241,0.0984,3200.2,3199.2,0.4793]
[1763391092774,0.0984,3200.7,3199.2,0.4793]
[1763391092978,0.405504,3201.5,3199.2,0.4793]
[1763391092979,0.0984,3200.5,3199.2,0.4793]
[1763391093300,0.0984,3201.3,3200.4,0.1845]
[1763391093581,0.0984,3202.4,3201.4,0.1098]
[1763391093739,0.0984,3202.2,3201.4,0.1098]
[1763391093940,0.0984,3202.2,3201.4,0.5891]
[1763391094184,0.005,3202.9,3201.4,0.5891]
[1763391094475,0.0984,3202.5,3201.4,0.5891]
[1763391094640,0.005,3202.9,3201.4,0.5891]
[1763391094641,0.1034,3202.9,3201.4,0.5891]
[1763391094844,0.005,3202.9,3201.4,0.5891]
[1763391095867,0.005,3202.9,3201.6,0.405504]
[1763391096070,0.005,3203.9,3201.9,0.405504]
[1763391096267,0.005,3203.9,3203.5,0.1845]
[1763391096780,0.005,3203.9,3203.0,0.4793]
[1763391096983,0.005,3203.9,3203.1,0.51051975]
[1763391097169,0.005,3203.9,3203.1,0.4793]
[1763391099446,0.002,3204.3,3203.2,0.43672278]
[1763391099646,0.002,3204.3,3203.1,0.4793]
[1763391099647,0.002,3204.3,3203.4,0.405504]
[1763391099847,0.002,3204.3,3203.3,0.4793]
[1763391100305,0.002,3204.3,3203.4,0.405504]
[1763391100507,0.002,3204.3,3203.3,0.4793]
[1763391102586,0.002,3204.3,3202.6,0.4793]
[1763391102587,0.0984,3203.9,3202.6,0.4793]
[1763391102789,0.002,3204.3,3202.6,0.4793]
[1763391102790,0.0984,3203.6,3202.6,0.4793]
[1763391103000,0.0984,3204.1,3202.6,0.4793]
[1763391103273,0.0984,3203.8,3202.6,0.4793]
[1763391103795,0.0984,3204.1,3202.6,0.4793]
[1763391104102,0.0984,3203.9,3202.6,0.4793]
[1763391104515,0.0984,3203.9,3202.7,0.03122365]
[1763391104810,0.0976,3203.9,3202.6,0.4793]
[1763391105171,0.0976,3204.2,3202.6,0.4793]
[1763391105370,0.0976,3203.9,3202.6,0.4793]
[1763391105570,0.0976,3204.2,3202.6,0.4793]
[1763391105771,0.0976,3203.9,3202.6,0.4793]
[1763391105974,0.0976,3203.5,3202.0,0.4793]
[1763391106209,0.4632,3204.2,3202.0,0.4793]
[1763391106210,0.0976,3203.1,3202.0,0.4793]
[1763391106413,0.0976,3203.1,3201.9,0.1845]
[1763391106729,0.0976,3202.9,3201.5,0.4793]
[1763391106874,0.1984,3203.0,3201.5,0.4793]
[1763391106875,0.0976,3202.6,3201.5,0.4793]
[1763391107414,0.6616,3203.0,3201.5,0.4793]
[1763391107415,0.0976,3202.8,3201.5,0.4793]
[1763391107615,0.0976,3202.8,3201.4,0.1098]
[1763391107616,0.0976,3202.8,3202.0,0.1845]
[1763391107866,0.0976,3202.6,3201.8,0.4793]
[1763391108032,0.0976,3202.6,3201.4,0.1098]
[1763391108344,0.0976,3202.2,3201.3,0.4793]
[1763391108722,0.0976,3202.2,3201.1,0.005]
[1763391108723,0.5608,3202.2,3201.1,0.005]
[1763391109135,0.0976,3202.4,3201.1,0.4843]
[1763391109338,0.0976,3202.4,3201.1,0.005]
[1763391109539,0.0976,3202.4,3201.6,0.6638]
[1763391109867,0.0976,3202.9,3202.2,0.4793]
[1763391110069,0.1984,3204.5,3202.3,0.03122755]
[1763391110362,0.4632,3204.1,3202.3,0.4793]
[1763391110750,0.0976,3203.9,3202.4,0.03122658]
[1763391111066,0.0976,3204.1,3202.3,0.4793]
[1763391111264,0.0976,3203.9,3202.3,0.4793]
[1763391112631,0.0976,3203.6,3202.3,0.4793]
[1763391112832,0.0976,3203.3,3202.3,0.4793]
[1763391113271,0.0976,3203.5,3202.3,0.4793]
[1763391113860,0.0976,3203.5,3201.6,0.1845]
[1763391113861,0.4632,3203.4,3201.6,0.1845]
[1763391114080,0.0976,3202.9,3201.6,0.1845]
[1763391114873,0.4632,3203.7,3202.1,0.4843]
[1763391115072,0.0976,3203.6,3202.1,0.4843]
[1763391115318,0.0976,3203.4,3202.1,0.4843]
[1763391115953,0.002,3204.3,3202.1,0.4843]
[1763391115954,0.0976,3202.3,3202.1,0.005]
[1763391116160,0.4632,3204.2,3202.2,0.4793]
[1763391116369,0.0976,3203.9,3202.2,0.4793]
[1763391116557,0.4632,3204.2,3202.2,0.4793]
[1763391116558,0.0976,3203.6,3202.2,0.4793]
[1763391116978,0.002,3204.3,3202.2,0.4793]
[1763391116979,0.002,3204.3,3202.2,1.38629264]
[1763391117179,0.0996,3204.3,3202.3,0.45142295]
[1763391117380,0.0976,3203.9,3202.3,0.94642295]
[1763391117595,0.0976,3203.1,3202.1,0.005]
[1763391117796,0.002,3203.9,3202.2,0.495]
[1763391117959,0.002,3203.9,3202.3,0.405504]
[1763391118162,0.002,3203.9,3202.5,0.90699264]
[1763391118360,0.002,3203.9,3203.8,0.1992]
[1763391118580,0.002,3203.9,3203.8,0.6942]
[1763391119718,0.002,3203.9,3203.4,0.1992]
[1763391120211,0.002,3203.9,3203.5,0.495]
[1763391120612,0.002,3204.3,3203.6,0.90699264]
[1763391120780,0.002,3204.3,3204.2,0.1004]
[1763391120978,0.0976,3204.2,3203.0,0.495]
[1763391121177,0.0976,3203.4,3202.0,0.6805]
[1763391121379,0.0976,3203.8,3202.2,0.495]
[1763391121580,0.0976,3202.8,3202.2,0.495]
[1763391121774,0.0976,3202.8,3202.0,0.001]
[1763391121976,0.0976,3202.6,3202.0,0.001]
[1763391122315,0.0976,3203.2,3202.0,0.6529]
[1763391122488,0.0976,3203.2,3202.0,0.1579]
[1763391122688,0.0976,3202.8,3202.0,0.001]
[1763391122916,0.1855,3203.1,3202.0,0.001]
[1763391122917,0.0976,3202.6,3202.0,0.001]
[1763391123116,0.0976,3202.3,3202.0,0.001]
[1763391123413,0.1855,3203.8,3202.2,0.495]
[1763391123414,0.0976,3202.8,3202.2,0.495]
[1763391123616,0.0976,3203.5,3202.3,0.03122755]
[1763391123787,0.6678,3204.2,3202.2,0.495]
[1763391123989,0.0976,3204.1,3202.3,0.43673155]
[1763391124315,0.002,3204.3,3202.2,1.40199264]
[1763391124316,0.002,3204.3,3204.2,0.1992]
[1763391124516,0.002,3204.3,3202.6,0.90699264]
[1763391124816,0.002,3204.3,3202.5,3.12249429]
[1763391124817,0.002,3204.3,3203.5,0.495]
[1763391126007,0.002,3204.3,3201.1,3.12890178]
[1763391126008,0.0996,3204.3,3203.0,0.495]
[1763391126190,0.0996,3204.3,3202.5,0.495]
[1763391126191,0.0976,3204.0,3202.5,0.495]
[1763391126612,0.002,3204.3,3202.5,0.495]
[1763391126937,0.0976,3203.9,3202.5,0.495]
[1763391127094,0.0976,3204.2,3202.5,0.495]
[1763391127291,0.002,3204.3,3202.6,0.43672862]
[1763391127490,0.002,3204.3,3202.6,1.31249664]
[1763391127728,0.002,3204.3,3202.8,0.405504]
[1763391127933,0.0012,3204.3,3202.8,0.405504]
[1763391128133,0.0012,3204.3,3204.2,0.1992]
[1763391128333,0.002,3204.6,3204.2,0.6942]
[1763391128636,0.002,3204.6,3204.3,0.495]
[1763391128806,0.002,3204.6,3204.2,0.1992]
[1763391129015,0.002,3204.6,3203.7,0.6942]
[1763391129216,0.002,3204.6,3203.7,0.1992]
[1763391129551,0.002,3204.6,3203.8,0.495]
[1763391131129,0.0996,3204.6,3203.3,0.1992]
[1763391131332,0.0976,3204.0,3202.2,0.495]
[1763391131692,0.1855,3203.9,3202.2,0.495]
[1763391131898,0.0976,3204.0,3202.2,0.495]
[1763391132530,0.0976,3204.2,3202.3,0.90699264]
[1763391132840,0.0976,3204.2,3202.5,0.405504]
[1763391133044,0.4823,3204.5,3202.5,0.405504]
[1763391133045,0.0976,3203.9,3202.5,0.405504]
[1763391133344,0.0976,3204.1,3202.6,0.495]
[1763391133543,0.002,3204.6,3202.1,0.005]
[1763391133544,0.0976,3203.8,3202.1,0.005]
[1763391133744,0.4823,3204.5,3202.1,0.005]
[1763391133745,0.0976,3203.4,3202.1,0.005]
[1763391134040,0.0976,3202.6,3202.1,0.005]
[1763391134253,0.0976,3202.4,3202.1,0.005]
[1763391134780,0.0976,3203.1,3202.1,0.5]
[1763391135075,0.0976,3203.0,3202.1,0.005]
[1763391135363,0.4823,3205.4,3203.9,0.1992]
[1763391135562,0.0976,3205.1,3203.9,0.1992]
[1763391135722,0.0976,3205.3,3204.0,0.495]
[1763391136067,0.0976,3204.8,3203.9,0.1992]
[1763391136369,0.002,3205.0,3204.0,0.495]
[1763391136668,0.0996,3205.0,3204.0,0.495]
[1763391137032,0.002,3205.0,3204.0,0.495]
[1763391137248,0.1026,3204.9,3204.0,0.495]
[1763391137464,0.1026,3204.9,3202.5,0.001]
[1763391137465,0.0976,3204.4,3202.5,0.001]
[1763391137658,0.005,3204.9,3202.5,0.001]
[1763391137659,0.0976,3204.0,3202.5,0.001]
[1763391137817,0.0976,3204.0,3203.0,0.4872]
[1763391138174,0.0976,3203.5,3202.5,0.4882]
[1763391138316,0.0976,3203.9,3202.5,0.4882]
[1763391138521,0.005,3204.9,3202.5,0.4882]
[1763391138522,0.0976,3203.5,3202.5,0.4882]
[1763391138816,0.0976,3203.8,3202.5,0.4882]
[1763391139017,0.005,3204.9,3202.5,0.4882]
[1763391139018,0.0976,3204.0,3202.6,0.405504]
[1763391139245,0.005,3204.9,3202.6,0.405504]
[1763391139246,0.005,3204.9,3202.6,9.77289297]
[1763391139458,0.0976,3204.5,3203.9,0.1984]
[1763391139842,0.005,3204.9,3203.9,0.6856]
[1763391140021,0.0976,3204.5,3203.9,0.6856]
[1763391140215,0.005,3204.9,3203.9,0.6856]
[1763391140423,0.0976,3204.5,3203.9,0.6856]
[1763391140618,0.0976,3204.5,3203.4,0.1999]
[1763391140963,0.0976,3203.7,3201.4,0.001]
[1763391141256,0.0976,3203.7,3202.8,0.4872]
[1763391141561,0.0976,3204.3,3203.6,0.1984]
[1763391141781,0.005,3204.9,3203.6,0.1984]
[1763391141932,0.0976,3204.8,3203.7,0.4872]
[1763391142270,0.0976,3204.4,3203.3,0.1984]
[1763391142956,0.1026,3204.9,3203.4,0.4872]
[1763391143170,0.0976,3204.5,3203.4,0.4872]
[1763391143679,0.005,3204.9,3202.8,0.4872]
[1763391143680,0.0976,3204.1,3202.8,0.4872]
[1763391143824,0.0976,3203.2,3202.5,0.001]
[1763391144155,0.0976,3203.1,3202.5,0.001]
[1763391144357,0.0976,3203.6,3202.6,0.4872]
[1763391144561,0.0976,3203.7,3202.5,0.001]
[1763391144756,0.6701,3204.4,3202.5,0.001]
[1763391144757,0.0976,3203.5,3202.5,0.001]
[1763391144957,0.0976,3203.1,3202.5,0.001]
[1763391145179,0.4857,3204.3,3202.6,0.4872]
[1763391145180,0.0976,3203.9,3202.6,0.4872]
[1763391145342,0.0976,3203.8,3202.6,0.4872]
[1763391145924,0.1844,3204.4,3202.6,0.4872]
[1763391146088,0.0976,3204.0,3202.8,0.405504]
[1763391146290,0.0976,3204.0,3202.9,0.4872]
[1763391146622,0.0976,3204.0,3202.5,0.4882]
[1763391146778,0.0976,3203.8,3202.5,0.4882]
[1763391146978,0.4857,3204.1,3202.5,0.001]
[1763391146980,0.0976,3203.2,3202.5,0.001]
[1763391147215,0.0976,3203.3,3202.5,0.001]
[1763391147528,0.4857,3204.0,3202.5,0.001]
[1763391147529,0.0976,3203.6,3202.5,0.001]
[1763391147704,0.1844,3204.4,3202.5,0.001]
[1763391147705,0.1844,3204.4,3202.6,0.464]
[1763391147905,0.4543,3204.5,3202.7,0.43672765]
[1763391147906,0.0976,3204.5,3202.7,0.43672765]
[1763391148108,0.1026,3204.9,3202.8,0.21199471]
[1763391148398,0.005,3204.9,3204.4,0.1913]
[1763391148799,0.005,3204.9,3204.5,0.49520611]
[1763391148999,0.005,3204.9,3204.1,0.1913]
[1763391149420,0.005,3204.9,3204.1,0.6553]
[1763391149626,0.0976,3204.8,3203.7,0.1913]
[1763391149937,0.005,3204.9,3203.7,0.1913]
[1763391150230,0.0976,3204.8,3203.8,0.464]
[1763391150553,0.0976,3204.8,3203.7,0.1913]
[1763391150700,0.0976,3204.5,3203.2,0.6553]
[1763391150896,0.0968,3204.5,3203.2,0.6553]
[1763391151100,0.0968,3204.3,3203.2,0.6553]
[1763391151408,0.0968,3203.9,3202.2,0.464]
[1763391151734,0.0968,3203.0,3202.0,0.001]
[1763391151896,0.18,3202.6,3202.0,0.001]
[1763391152096,0.0968,3202.2,3201.7,0.001]
[1763391152333,0.0968,3201.9,3201.7,0.001]
[1763391152534,0.4543,3202.5,3201.1,0.005]
[1763391152535,0.0968,3201.5,3201.1,0.005]
[1763391152711,0.7311,3201.5,3201.1,0.005]
[1763391152909,0.0968,3201.2,3201.1,0.005]
[1763391153322,0.5511,3201.2,3201.1,0.005]
[1763391153959,0.5511,3201.2,3199.1,0.005]
[1763391153960,0.0968,3200.2,3199.1,0.005]
[1763391154101,0.0968,3199.2,3199.1,0.005]
[1763391154899,0.18,3200.2,3199.1,0.005]
[1763391154900,0.0968,3199.4,3199.1,0.005]
[1763391155125,0.0968,3199.2,3199.1,0.005]
[1763391155435,0.18,3200.2,3199.1,0.005]
[1763391155436,0.0968,3199.7,3199.1,0.005]
[1763391155941,0.18,3199.2,3199.1,0.005]
[1763391156125,0.0968,3199.3,3199.1,0.005]
[1763391156316,0.0968,3199.6,3199.1,0.005]
[1763391156914,0.0968,3199.2,3199.1,0.005]
[1763391157314,0.5511,3199.2,3199.1,0.005]
[1763391158003,0.0968,3199.2,3199.1,0.005]
[1763391158644,0.0968,3199.7,3199.1,0.005]
[1763391159005,0.0968,3199.2,3199.1,0.005]
[1763391159430,0.5511,3199.2,3199.1,0.005]
[1763391159741,0.0968,3199.2,3199.1,0.005]
[1763391159917,0.5511,3199.2,3199.1,0.005]
[1763391160120,0.5511,3199.2,3198.7,0.001]
[1763391160335,0.90699264,3198.7,3196.1,0.005]
[1763391160508,0.0968,3197.2,3196.3,0.1913]
[1763391160708,0.0968,3197.2,3196.1,0.005]
[1763391160913,0.5511,3197.2,3196.1,0.005]
[1763391161604,0.0968,3197.2,3196.3,0.1913]
[1763391162144,0.0968,3197.2,3196.1,0.005]
[1763391162304,0.5511,3197.2,3196.1,0.005]
[1763391162703,0.0968,3197.2,3196.3,0.1913]
[1763391162944,0.0968,3197.2,3196.1,0.005]
[1763391162945,0.5511,3197.2,3196.1,0.005]
[1763391163246,0.5511,3197.2,3195.1,0.005]
[1763391163247,0.0968,3195.2,3195.1,0.005]
[1763391163821,0.90699264,3196.6,3195.1,0.005]
[1763391163822,0.0968,3195.4,3195.1,0.005]
[1763391164116,0.0968,3195.2,3195.1,0.005]
[1763391164520,0.0968,3195.4,3195.1,0.005]
[1763391164922,0.0968,3195.2,3195.1,0.005]
[1763391166429,0.5511,3195.2,3195.1,0.005]
[1763391166651,0.5511,3195.2,3195.0,0.001]
[1763391166652,0.0968,3195.2,3195.0,0.001]
[1763391166855,0.0968,3195.2,3194.4,0.001]
[1763391166856,0.5511,3195.2,3194.4,0.001]
[1763391167038,0.0968,3194.5,3194.3,0.001]
[1763391167240,0.0968,3193.2,3193.1,0.005]
[1763391167452,0.24,3193.2,3193.1,0.005]
[1763391167750,0.0968,3193.2,3193.1,0.005]
[1763391169152,0.0968,3193.5,3193.1,0.005]
[1763391169384,0.0968,3193.3,3193.1,0.005]
[1763391169583,0.0968,3193.2,3193.1,0.005]
[1763391170175,0.4543,3194.6,3193.1,0.469]
[1763391170359,0.4543,3195.4,3193.1,0.469]
[1763391170684,0.0968,3194.6,3193.2,0.405504]
[1763391171089,0.0968,3194.2,3193.3,0.464]
[1763391171449,0.0968,3194.0,3193.3,0.464]
[1763391171672,0.4543,3195.4,3193.3,0.464]
[1763391171673,0.0968,3194.3,3193.4,0.405504]
[1763391171890,0.4543,3195.4,3193.5,0.464]
[1763391172075,0.0968,3194.0,3193.5,0.464]
[1763391172401,0.4543,3195.3,3193.6,0.405504]
[1763391172554,0.0968,3194.5,3193.5,0.464]
[1763391172748,0.0968,3194.4,3193.5,0.464]
[1763391172993,0.005,3195.9,3193.1,0.005]
[1763391172994,0.0968,3193.9,3193.1,0.005]
[1763391173298,0.0968,3193.9,3193.2,0.464]
[1763391173589,0.18,3194.9,3193.2,0.464]
[1763391173590,0.0968,3193.6,3193.2,0.464]
[1763391173895,0.405504,3195.8,3193.3,0.405504]
[1763391174105,0.0968,3194.4,3193.4,0.464]
[1763391174309,0.4543,3195.7,3193.5,0.405504]
[1763391174613,0.4543,3195.7,3193.5,1.31249664]
[1763391174906,0.0968,3194.9,3193.7,0.405504]
[1763391175194,0.0968,3194.7,3193.8,0.18077914]
[1763391175354,0.0968,3194.3,3193.8,0.464]
[1763391175555,0.0968,3194.6,3193.8,0.464]
[1763391175765,0.0968,3194.4,3193.8,0.464]
[1763391175963,0.0968,3194.6,3193.8,0.464]
[1763391176163,0.4543,3195.7,3194.0,0.405504]
[1763391176472,0.0968,3194.8,3193.9,0.596804]
[1763391176706,0.0968,3194.9,3194.0,0.869504]
[1763391176898,0.005,3195.9,3194.0,0.869504]
[1763391176899,0.0968,3194.7,3194.0,0.869504]
[1763391177067,0.005,3195.9,3193.9,0.1913]
[1763391177068,0.0968,3194.4,3193.9,0.1913]
[1763391177263,0.4543,3195.8,3193.1,0.005]
[1763391177264,0.0968,3193.9,3193.1,0.005]
[1763391177502,0.0968,3193.3,3193.1,0.005]
[1763391178564,0.90699264,3195.6,3193.1,0.005]
[1763391178565,0.0968,3193.9,3193.2,0.496]
[1763391178799,0.0968,3194.1,3193.2,0.496]
[1763391179000,0.0968,3193.9,3193.2,0.496]
[1763391179320,0.6782,3195.0,3193.2,0.496]
[1763391179321,0.0968,3194.1,3193.2,0.496]
[1763391179465,0.4889,3195.5,3193.8,0.1905]
[1763391179671,0.405504,3195.7,3193.2,0.496]
[1763391179979,0.4889,3195.8,3193.3,0.405504]
[1763391180179,0.0968,3193.8,3193.2,0.496]
[1763391180682,0.0968,3193.8,3193.1,0.005]
[1763391180683,0.0968,3193.2,3193.1,0.005]
[1763391181468,0.5857,3193.2,3193.1,0.005]
[1763391181868,0.5857,3193.2,3193.0,0.001]
[1763391183485,0.5857,3193.2,3192.1,0.005]
[1763391183486,0.0968,3192.8,3192.1,0.005]
[1763391183724,4.30079264,3192.5,3192.1,0.005]
[1763391183893,0.0968,3192.2,3192.1,0.005]
[1763391184087,0.0968,3192.2,3191.6,0.001]
[1763391184286,0.744884,3192.7,3191.6,0.001]
[1763391184287,0.0968,3192.0,3191.6,0.001]
[1763391184510,0.0968,3190.2,3190.1,0.005]
[1763391185296,0.1893,3190.8,3190.1,0.005]
[1763391185616,0.0968,3190.2,3190.1,0.005]
[1763391186007,0.5857,3190.2,3190.1,0.005]
[1763391186386,0.991204,3190.2,3190.1,0.005]
[1763391186587,0.0968,3189.2,3189.1,0.005]
[1763391187111,0.0968,3188.2,3188.1,0.005]
[1763391187423,0.0968,3188.2,3186.3,0.001]
[1763391187720,0.0968,3187.2,3186.3,0.001]
[1763391188028,0.691604,3187.2,3186.3,0.001]
[1763391188222,0.502304,3186.7,3186.3,0.001]
[1763391188523,0.0968,3186.7,3186.3,0.001]
[1763391188709,0.0968,3186.2,3186.0,0.001]
[1763391189206,0.0968,3185.4,3185.3,0.05]
[1763391189382,0.2131,3185.4,3183.0,0.001]
[1763391189587,0.0968,3184.2,3183.0,0.001]
[1763391189788,0.0968,3183.2,3183.0,0.001]
[1763391190221,0.0968,3183.8,3183.1,0.501]
[1763391190421,0.0968,3184.2,3183.1,0.005]
[1763391190724,0.0968,3183.2,3183.1,0.005]
[1763391190909,0.5857,3183.2,3183.1,0.005]
[1763391191218,0.0968,3183.2,3183.1,0.005]
[1763391192101,0.0968,3183.2,3182.1,0.005]
[1763391192102,0.0968,3182.7,3182.1,0.005]
[1763391192489,0.405504,3182.6,3182.1,0.005]
[1763391192688,0.405504,3182.6,3180.7,0.09083496]
[1763391192689,0.0968,3181.2,3180.7,0.09083496]
[1763391192928,0.0968,3181.2,3177.4,0.05]
[1763391192929,0.0968,3180.2,3178.5,0.496]
[1763391193231,0.0968,3180.2,3179.0,0.496]
[1763391193446,0.5857,3180.2,3178.4,0.16385177]
[1763391193787,0.6782,3180.9,3179.1,0.1955]
[1763391194000,0.894404,3182.1,3179.1,0.1955]
[1763391194186,0.894404,3182.1,3179.5,0.496]
[1763391194388,0.90699264,3182.9,3179.1,0.1955]
[1763391194389,0.405504,3181.9,3179.1,0.1955]
[1763391194589,0.4889,3183.9,3181.2,6.83658859]
[1763391194831,0.4889,3183.8,3181.9,0.405504]
[1763391195030,0.4889,3183.8,3181.3,2.0866515]
[1763391195031,0.4889,3183.8,3181.3,0.68365886]
[1763391195199,0.4889,3183.8,3180.5,0.496]
[1763391195521,0.4889,3183.8,3178.1,0.005]
[1763391195522,0.405504,3182.8,3179.9,0.496]
[1763391195724,0.72420926,3182.7,3179.3,0.496]
[1763391195941,1.31249664,3182.5,3179.3,0.496]
[1763391196086,1.31249664,3182.1,3179.2,0.496]
[1763391196290,1.31249664,3182.1,3178.2,6.83658859]
[1763391196291,0.405504,3182.1,3179.1,0.005]
[1763391196599,0.4889,3182.5,3179.3,0.496]
[1763391196600,0.405504,3181.9,3179.3,0.496]
[1763391197141,0.6782,3182.0,3180.2,0.4685]
[1763391197426,0.4668,3182.6,3180.3,0.405504]
[1763391197629,0.4668,3182.6,3179.5,0.90699264]
[1763391197806,0.4668,3182.6,3179.4,0.5185]
[1763391198129,0.90699264,3182.3,3179.4,0.05]